Cogmind - Beta 12 *** ADVENTURER MODE // 2024.02.04 @ 00:32:40 Player: Kek Result: Self-destructed Performance ------------- Evolutions (2) 1000 Regions Visited (3) 600 Robots Destroyed (48) 240 Value Destroyed (1364) 1364 Prototype IDs (3) 60 Alien Tech Used (0) 0 Bonus (4) 4 TOTAL SCORE: 3268 Bonus ------- High Alert Combat Kills 4 Cogmind --------- Core Integrity 92/550 Matter 138/300 Energy 300/300 System Corruption 1% Temperature Cool (9) Movement Flying (115) Ox1 Location -8/Materials Parts ------- > --- POWER (2) -------- (None) > --- PROPULSION (3) --- Cesium-ion Thruster > --- UTILITY (4) ------ Large Battery Visual Processing Unit Hacking Suite > --- WEAPON (2) ------- High-powered Shotgun > --- INVENTORY (5) ---- (None) Peak State ------------ > --- POWER ------------ Light Deuterium Engine Light Nuclear Core > --- PROPULSION ------- Aluminum Leg Aluminum Leg Aluminum Leg > --- UTILITY ---------- Heat Sink Small Storage Unit Hardened Light Armor Plating Hacking Suite > --- WEAPON ----------- Improved Medium Laser Autogun > --- INVENTORY -------- Aluminum Leg Large Battery Visual Processing Unit EM Shotgun Advanced Beam Rifle [Rating: 22] Favorites ----------- Power Light Ion Engine Engine Light Ion Engine Power Core Light Nuclear Core Propulsion Aluminum Leg Leg Aluminum Leg Flight Unit Cesium-ion Thruster Utility Small Storage Unit Device Heat Sink Storage Small Storage Unit Processor Improved Targeting Computer Hackware Hacking Suite Protection Hardened Light Armor Plating Weapon Improved Medium Laser Energy Gun Improved Medium Laser Energy Cannon Light EM Pulse Cannon Ballistic Gun Autogun Launcher Grenade Launcher Build | -11 -10 -9 -8 ------- Run | Jun Mat Mat Mat Slots Evolved 4 | . . 2 2 Power 1 | . . . 1 Propulsion 1 | . . 1 . Utility 2 | . . 1 1 Weapon . | . . . . Parts Attached 44 | 6 6 12 20 Power 6 | 1 1 2 2 Engine 5 | 1 1 2 1 Core 1 | . . . 1 Reactor . | . . . . Propulsion 14 | 2 2 3 7 Treads . | . . . . Leg 13 | 2 2 3 6 Wheel . | . . . . Hover . | . . . . Flight 1 | . . . 1 Utility 12 | 1 1 4 6 Device 2 | . 1 . 1 Storage 5 | 1 . 3 1 Processor 2 | . . . 2 Hackware 1 | . . . 1 Protection 2 | . . 1 1 Artifact . | . . . . Weapon 12 | 2 2 3 5 Energy Gun 5 | 1 1 2 1 Energy Cannon 1 | . . 1 . Ballistic Gun 5 | 1 . . 4 Ballistic Cannon . | . . . . Launcher 1 | . 1 . . Special Weapon . | . . . . Impact Weapon . | . . . . Slashing Weapon . | . . . . Piercing Weapon . | . . . . Special Melee Weapon . | . . . . Unidentified Prototypes 2 | . . 2 . Parts Lost 21 | . . 1 20 Power 2 | . . . 2 Propulsion 8 | . . . 8 Utility 5 | . . . 5 Weapon 6 | . . 1 5 Highest Loss Streak 14 | . . 1 14 To Critical Strikes 1 | . . . 1 Average Slot Usage (%) 93 | . 97 100 81 Engine 9 | . 14 11 5 Core 1 | . . . 5 Leg 28 | . 28 33 21 Device 9 | . 11 11 7 Storage 12 | . 14 14 8 Processor 1 | . . . 4 Hackware 1 | . . . 5 Protection 6 | . . 7 6 Energy Gun 11 | . 22 9 9 Energy Cannon 3 | . . 6 . Ballistic Gun 2 | . 2 . 6 Launcher 3 | . 2 6 . Naked Turns . | . . . . Heaviest Build 27 | 10 14 23 27 Greatest Support 30 | 20 20 30 30 Greatest Overweight (x) 3 | . . . 3 Average Overweight (x) . | . . . . Largest Inventory Capacity 25 | 8 8 25 8 Average Capacity 7 | 6 8 8 7 Most Carried 8 | 5 8 8 8 Average Carried 5 | 3 6 5 5 Final Capacity 8 | 8 8 8 5 Final Carried 7 | 4 7 6 . Class Distribution -------------------- 80% | Mutant 19% | Hacker-Mutant Dominant Class ---------------- Mutant | -10/Materials Mutant | -9/Materials Hacker-Mutant | -8/Materials Resources | -11 -10 -9 -8 ----------- Run | Jun Mat Mat Mat Matter Collected 728 | 252 92 235 149 Remotely . | . . . . Salvage Created 1656 | . 287 745 624 Parts 101 | . 16 53 32 Haulers Intercepted 1 | . . 1 . Recyclers Shooed . | . . . . Parts Field Recycled . | . . . . Retrieved Matter . | . . . . Parts Self-Destructed . | . . . . Prevented . | . . . . Kills | -11 -10 -9 -8 ------- Run | Jun Mat Mat Mat Combat Hostiles Destroyed 38 | . 6 18 14 Guns 29 | . 4 11 14 AOE 9 | . 2 7 . Classes Destroyed 9 | . 2 5 2 Worker 2 | . . 2 . Tunneler 1 | . . 1 . Hauler 1 | . . 1 . Recycler 1 | . . . 1 Watcher 5 | . 1 4 . Swarmer 10 | . . 4 6 Grunt 21 | . 6 11 4 Brawler 1 | . . . 1 Sentry 6 | . . 3 3 Best Kill Streak 5 | . 2 5 3 Combat Bots Only 4 | . 2 4 3 Max Kills in Single Turn 3 | . 1 3 1 Gunslinging 1 | . . 1 . Exploded 2 | . 1 2 . Melee . | . . . . Uniques/NPCs Destroyed . | . . . . Combat | -11 -10 -9 -8 -------- Run | Jun Mat Mat Mat Damage Taken 3001 | . 296 413 2292 Core 600 | . 89 53 458 Absorbed by Shields . | . . . . Core Remaining (%) 83 | 100 64 86 . Volleys Fired 116 | . 23 37 56 Largest 2 | . 2 2 2 Hottest 101 | . 80 101 101 Shots Fired 207 | . 46 69 92 Gun 182 | . 44 46 92 Cannon 11 | . . 11 . Launcher 14 | . 2 12 . Special . | . . . . Kinetic 70 | . 11 . 59 Thermal 62 | . 21 22 19 Explosive 14 | . 2 12 . Electromagnetic 61 | . 12 35 14 Robot Hit Streak 37 | . 19 13 37 Robot Miss Streak 2 | . 1 2 1 Penetration Max . | . . . . Secondary Targets 6 | . 1 3 2 Max Gunslinging Chain 1 | . 1 1 1 Shots Hit Robots 169 | . 37 49 83 Core Hits 90 | . 14 41 35 Critical Kills . | . . . . Critical Parts Destroyed . | . . . . Critical Strikes 12 | . 1 6 5 Burn 9 | . . 4 5 Corrupt 3 | . 1 2 . Melee Attacks . | . . . . Impact . | . . . . Slashing . | . . . . Piercing . | . . . . Sneak Attacks . | . . . . Combat Hostiles . | . . . . Follow-up Attacks . | . . . . Damage Inflicted 3285 | . 486 1406 1393 Guns 2254 | . 380 550 1324 Cannons 185 | . . 185 . Explosions 795 | . 106 651 38 Melee . | . . . . Ramming 51 | . . 20 31 Kinetic 875 | . 74 . 801 Thermal 856 | . 197 304 355 Explosive 726 | . 106 620 . Electromagnetic 777 | . 109 462 206 Impact . | . . . . Slashing . | . . . . Piercing . | . . . . Highest Corruption 1 | . . . 1 Average Corruption 1 | . . . 1 Corruption Purged . | . . . . Corruption Blocked . | . . . . Overload Shots . | . . . . Overflow Damage 5 | . . 5 . Projectiles . | . . . . Explosions 5 | . . 5 . Melee . | . . . . Knockbacks 4 | . . 2 2 Impact 4 | . . 2 2 Kinetic . | . . . . Secondary . | . . . . Self-Inflicted Damage 84 | . . 69 15 Shots 3 | . . 2 1 Rammed 7 | . . . 7 Targets Rammed 15 | . . 6 9 Kicked 8 | . . 6 2 Crushed . | . . . . Highest Temperature 186 | . 156 103 186 Average Temperature 45 | . 62 32 48 Received Heat Transfer 1311 | . 213 162 936 Siege Activations . | . . . . Robots Corrupted . | . . . . Combat Hostiles . | . . . . Parts Fried 1 | . . 1 . Impact Corruptions . | . . . . Robots Melted . | . . . . Combat Hostiles . | . . . . Parts Melted 7 | . . 2 5 Heat Transferred 2461 | . 450 938 1073 Parts Sabotaged . | . . . . Parts Stolen . | . . . . Parts Stripped . | . . . . Power Chain Reactions 2 | . . 1 1 Missiles Intercepted . | . . . . Alert | -11 -10 -9 -8 ------- Run | Jun Mat Mat Mat Peak Influence 426 | . 176 372 426 Initial 94 | . . 63 94 Average 181 | . 92 203 213 Maximum Alert Level 2 | . . 1 2 Low Security (%) 54 | 100 100 40 46 Level 1 44 | . . 59 50 Level 2 . | . . . 2 Level 3 . | . . . . Level 4 . | . . . . Level 5 . | . . . . High Security . | . . . . Max Security . | . . . . Squads Dispatched 6 | . 2 1 3 Investigation 2 | . 2 . . Extermination . | . . . . Reinforcement 1 | . . 1 . Assault . | . . . . Garrison 3 | . . . 3 Intercept . | . . . . Searches Triggered . | . . . . Construction Impeded . | . . . . Haulers Reinforced . | . . . . Active Scanning Responses . | . . . . Cargo Convoy Interrupts . | . . . . Stealth | -11 -10 -9 -8 --------- Run | Jun Mat Mat Mat Distress Signals 5 | . . 2 3 Communications Jammed . | . . . . Distress Signals . | . . . . Times Spotted 58 | . 7 24 27 Peak Tracking Total 9 | . 2 4 9 Tactical Retreats 5 | . . 2 3 Traps | -11 -10 -9 -8 ------- Run | Jun Mat Mat Mat Traps Triggered 1 | . 1 . . Indirectly . | . . . . Trap Hack Attempts . | . . . . Triggered . | . . . . Disarmed . | . . . . Reprogrammed . | . . . . Reused . | . . . . Traps Extracted . | . . . . Installed . | . . . . Triggered . | . . . . Machines | -11 -10 -9 -8 ---------- Run | Jun Mat Mat Mat Machines Disabled 3 | . . 3 . Max in Single Turn 2 | . . 2 . Machines Repaired . | . . . . Machines Sabotaged . | . . . . Overloaded Fab Kills . | . . . . Hacking | -11 -10 -9 -8 --------- Run | Jun Mat Mat Mat Machines Accessed 7 | . 2 3 2 Terminals 5 | . 2 2 1 Fabricators . | . . . . Repair Stations . | . . . . Recycling Units . | . . . . Scanalyzers 2 | . . 1 1 Garrison Access . | . . . . Total Hacks 13 | . 3 7 3 Successful 10 | . 1 6 3 Failed 3 | . 2 1 . Catastrophic 2 | . 2 . . Database Lockouts . | . . . . Manual 4 | . 2 1 1 Terminals 7 | . 3 3 1 Fabricators . | . . . . Repair Stations . | . . . . Recycling Units . | . . . . Scanalyzers 6 | . . 4 2 Garrison Access . | . . . . Terminal Hacks 4 | . 1 2 1 Unreport Threat 1 | . . 1 . Zone Layout 3 | . 1 1 1 Fabricator Hacks . | . . . . Repair Station Hacks . | . . . . Recycling Unit Hacks . | . . . . Scanalyzer 6 | . . 4 2 Insert Component 3 | . . 1 2 Analyze 3 | . . 3 . Garrison Access Hacks . | . . . . Unauthorized Hacks . | . . . . Terminals . | . . . . Fabricators . | . . . . Repair Stations . | . . . . Recycling Units . | . . . . Scanalyzers . | . . . . Garrison Access . | . . . . Data Cores Recovered . | . . . . Used . | . . . . Hacking Detections 7 | . 2 3 2 Full Trace Events 1 | . 1 . . Feedback Events . | . . . . Feedback Blocked . | . . . . Robot Schematics Acquired . | . . . . Robots Built . | . . . . Authchips . | . . . . Time . | . . . . Total Robot Build Rating . | . . . . Part Schematics Acquired 1 | . . 1 . Parts Built . | . . . . Authchips . | . . . . Time . | . . . . Total Part Build Rating . | . . . . Parts Repaired . | . . . . Time . | . . . . Parts Recycled . | . . . . Recycled Matter . | . . . . Retrieved Matter . | . . . . Retrieved Components . | . . . . Parts Scanalyzed 1 | . . 1 . Part Schematics Acquired 1 | . . 1 . Parts Damaged . | . . . . Bothacking | -11 -10 -9 -8 ------------ Run | Jun Mat Mat Mat Used RIF Installer . | . . . . Robots Hacked . | . . . . Non-combat . | . . . . Combat . | . . . . Robot Hacks Applied . | . . . . Relay Couplers Released . | . . . . Fabnet Peak Effective % . | . . . . Robots Rewired . | . . . . Allies Hacked . | . . . . Hacks Repelled . | . . . . Allies | -11 -10 -9 -8 -------- Run | Jun Mat Mat Mat Total Allies . | . . . . Largest Group . | . . . . Highest-Rated Group . | . . . . Highest-Rated Ally . | . . . . Total Orders . | . . . . Ally Attacks . | . . . . Total Damage . | . . . . Kills . | . . . . Allies Corrupted . | . . . . Allies Melted . | . . . . Intel | -11 -10 -9 -8 ------- Run | Jun Mat Mat Mat Robot Analysis Total . | . . . . Derelict Logs Recovered . | . . . . Drone Launches . | . . . . Drone Recoveries . | . . . . Exploration | -11 -10 -9 -8 ------------- Run | Jun Mat Mat Mat Turns Passed 2030 | 56 358 1002 614 Spaces Moved 1319 | 48 225 695 351 Core 62 | 22 . . 40 Treads . | . . . . Legs 1242 | 26 225 695 296 Wheels . | . . . . Hover . | . . . . Flight 15 | . . . 15 Fastest Speed 50 | 50 120 120 50 Average Speed 118 | 87 120 120 118 Slowest Speed 200 | 120 120 120 200 Overloaded Moves . | . . . . Propulsion Burnouts . | . . . . Robots Hopped . | . . . . Cave-ins Triggered . | . . . . Exploration Rate (%) 28 | 4 36 44 30 Regions Visited 3 Branch Regions . Pre-discovered Areas . | . . . . Known Exits Taken . | . . . . Unknown Exits Taken 3 | 1 1 1 . Scrap Searched . | . . . . Spaces Dug . | . . . . Terrain Destroyed 123 | . 16 105 2 Melee . | . . . . Projectile . | . . . . AOE 123 | . 16 105 2 Terrain Rammed . | . . . . Walls Destroyed . | . . . . Machines Disabled . | . . . . Actions | -11 -10 -9 -8 --------- Run | Jun Mat Mat Mat Total 1591 | 60 270 794 467 Wait 39 | . . 26 13 Move 1316 | 47 224 694 351 Hop . | . . . . Pick Up 41 | 7 10 10 14 Fast Attach 3 | 3 . . . Attach 29 | 3 1 6 19 Detach 1 | . . 1 . Swap 12 | . 5 6 1 Drop 19 | . 7 8 4 Fire 116 | . 23 37 56 Melee . | . . . . Ram 7 | . . . 7 Kick 8 | . . 6 2 Crush . | . . . . Escape Stasis . | . . . . Rewire . | . . . . Trap . | . . . . Miscellaneous . | . . . . Route ------- -11/Junkyard -10/Materials -9/Materials -8/Materials History --------- Turn | Location | Event 5 | -11/Junkyard | Discovered new exit (range 15) 57 | -11/Junkyard | Entered Materials 302 | -10/Materials | Build established: Mutant 395 | -10/Materials | Discovered new exit (range 9) 415 | -10/Materials | Entered another Materials area 415 | -9/Materials | Evolved 2 slots: Propulsion x1, Utility x1 1082 | -9/Materials | Discovered new exit (range 11) 1417 | -9/Materials | Entered another Materials area 1417 | -8/Materials | Evolved 2 slots: Power x1, Utility x1 1694 | -8/Materials | Garrison activated, responded to threat 1814 | -8/Materials | Lost 3 parts (1p1n1w) 1867 | -8/Materials | Lost 3 parts (1p1n1u) 1936 | -8/Materials | Build established: Hacker-Mutant 1976 | -8/Materials | Core integrity fell below 50% 1993 | -8/Materials | Core integrity fell below 20% 2022 | -8/Materials | Lost 14 parts (6n4u4w) 2031 | -8/Materials | Self-destructed Last Messages --------------- 01985_ H-55 Commando knocked back. 01986_ Slug penetrates Wall. 01986_ K-01 Serf collects debris. 01986_ Slammed into H-55 Commando. 01989_ Penetrated by Slug. 01989_ K-01 Serf collects debris. 01991_ U-05 Engineer builds a Door. 01991_ Sml. Storage Unit destroyed. 01991_ U-05 Engineer destroyed. 01992_ Penetrated by Slug. 01993_ U-05 Engineer builds a Door. 01994_ K-01 Serf collects debris. 02000_ K-01 Serf cleans the Nuclear Reactor. 02001_ Acquired Hpw. Shotgun. 02002_ Slug penetrates Wall. 02003_ K-01 Serf cleans the Nuclear Reactor. 02003_ Acquired Cesium-ion Thruster. 02006_ K-01 Serf cleans the Nuclear Reactor. 02022_ Slug penetrates Wall. 02022_ K-01 Serf cleans the Nuclear Reactor. Map ----- +----------------------------------------------------+ | ???????????# #???????????????????????? | | ???????????# """ #???????????????????????? | | ???????????# """ #???????????????????????? | | ???????????# """ #???????????????????????? | | ############ #???????????????????????? | | # #! " " #???????????????????????? | | # # ! "R" #???????????????????????? | | # # """ #???????????????????????? | | # # #???????????????????????? | | # #+##+#############+##????????????? | | # # ???????????? | | # # ???????????? | | # + | ???????????? | | # # % ???????????? | | # # ! ???????????? | | # ## ############ ###????????????? | | # ## #???????????????????????????? | | # ## #???????????????????????????? | | # ## #???????????????????????????? | | # ## ########????????????????????? | | ##########+## # =#????????????????????? | | ?????????# # #????????????????????? | | ?????????# # k"""#????????????????????? | | ?????????# # """#????????????????????? | | ?????????# # """###+#######??????????? | | ?????????# # @ # ??????? | | ?????????# #####Y## ??????? | | ?????????# ??????? | | ?????????#! ??????? | | ?????????#!! ??????? | | ????######+# """ """ #########????????? | | ????# [% # """ """ [#?? ]??????????? | | ????# ! *# """ """ # """ ???????????? | | ????#= !%+ + "T" ???????????? | | ????# / [# #????????????????? | | ????# # ############ #????????????????? | | ????# # #??????????# #????????????????? | | ????######## #?????###### #????????????????? | | ??????????? +?????# # ######### #????? | | ?????????? ####?????# + #????? | | ?????????# ?????????# # #????? | | ?????????#??????????# # #????? | | ????????????????????# " #????? | | ????????????????????# ########### #????? | | ????????????????????# # + ?????? | | ????????????????????# =%*+ """ "??# ?????? | | ????????????????????# [%# """ "G??# ?????? | | ????????????????????####/# """ "???# #????? | | ???????????????????????# #? ???# ##+### | | ???????????????????????# #?? ???# # | +----------------------------------------------------+ Best States ------------- Heat Dissipation 45 Energy Generation 23 Energy Capacity 325 Matter Stores 300 Matter Capacity 300 Sight Range 18 Terrain Scan Density 10 Armor Coverage 225 Resistance: KI 20 Resistance: TH 20 Resistance: EX 20 Resistance: EM 20 Resistance: I 20 Resistance: S 20 Resistance: P 20 Evasion (%) 55 Targeting Accuracy 6 Offensive Hacking 20 Item Schematics ----------------- Visual Processing Unit | -9/Materials | Scanalyzed Robot Schematics ------------------ None Fabricated ------------ Nothing Alien Tech Used ----------------- None Achievements -------------- Safety First Challenges ------------ None Game ------ Seed SchematicFlakGenerator Manual? 0 Play Time 00:52:40 Cumulative 15.0 hours Start 2024.02.01 @ 23:43:59 End 2024.02.04 @ 00:32:40 Sessions 9 Manual Loads 0 Difficulty Adventurer Special Mode None Game No. 24 Rogue 12 Adventurer 4 Explorer 8 Win Type - Total 0 Types 0/0/0/0/0/0/0/0/0 Lore% 5 Gallery% 19 Achievement% 18 Wizard Run 0 Options --------- ASCII 0 Keyboard 0 Movement Mouse Keybinds 0 Fullscreen 1 Font 24/Smallcaps Map View 113x50 Tactical HUD 1 Map Filters NONE Filters NONE Steam 1 RUN: c55334c1-1f7b-48b5-bcbc-5892f182f133